Cogmind - Beta 10.2 @@@ ROGUE MODE // 2020.11.02 @ 00:53:37 // Winter2019/RPGLIKE Player: FontPeg Result: Destroyed by G-34 Mercenary with Small Laser Performance ------------- Evolutions (1) 500 Regions Visited (2) 400 Robots Destroyed (6) 30 Value Destroyed (66) 66 Prototype IDs (3) 60 Alien Tech Used (0) 0 Bonus (200) 200 TOTAL SCORE: 1256 Bonus ------- Pacifist 200 Cogmind --------- Core Integrity 0/600 Matter 300/300 Energy 280/280 System Corruption 0% Temperature Cool (6) Movement Rolling (100) Location -9/Materials Parts ------- > --- POWER (1) -------- Heavy Ion Engine > --- PROPULSION (3) --- Compact Wheel Compact Wheel > --- UTILITY (1) ------ High-powered Tractor Beam > --- WEAPON (2) ------- Mace Mace > --- INVENTORY (2) ---- Light Ion Engine Mining Laser Peak State ------------ > --- POWER ------------ Heavy Ion Engine > --- PROPULSION ------- Compact Wheel Compact Wheel > --- UTILITY ---------- High-powered Tractor Beam > --- WEAPON ----------- Mace Mace > --- INVENTORY -------- Light Ion Engine Mining Laser [Rating: 11] Favorites ----------- Power Light Ion Engine Engine Light Ion Engine Propulsion Compact Wheel Wheel Compact Wheel Utility Terrain Scan Processor Device High-powered Tractor Beam Processor Terrain Scan Processor Weapon Mace Energy Gun EM Pulse Gun Ballistic Gun Assault Rifle Special Weapon Plasma Cutter Impact Weapon Mace Build | -11 -10 -9 ------- Run | Scr Mat Mat Slots Evolved 3 | 3 . . Power . | . . . Propulsion 2 | 2 . . Utility . | . . . Weapon 1 | 1 . . Parts Attached 15 | 5 1 9 Power 2 | 1 . 1 Engine 2 | 1 . 1 Core . | . . . Reactor . | . . . Propulsion 2 | 2 . . Treads . | . . . Leg . | . . . Wheel 2 | 2 . . Hover . | . . . Flight . | . . . Utility 2 | . 1 1 Device 1 | . . 1 Storage . | . . . Processor 1 | . 1 . Hackware . | . . . Protection . | . . . Artifact . | . . . Weapon 9 | 2 . 7 Energy Gun 3 | 1 . 2 Energy Cannon . | . . . Ballistic Gun 2 | 1 . 1 Ballistic Cannon . | . . . Launcher . | . . . Special Weapon 1 | . . 1 Impact Weapon 3 | . . 3 Slashing Weapon . | . . . Piercing Weapon . | . . . Special Melee Weapon . | . . . Unidentified Prototypes 2 | . . 2 Parts Lost . | . . . Power . | . . . Propulsion . | . . . Utility . | . . . Weapon . | . . . Highest Loss Streak . | . . . Average Slot Usage (%) 79 | . 71 80 Engine 14 | . 14 14 Wheel 28 | . 28 28 Device 4 | . . 5 Processor 6 | . . 7 Energy Gun 4 | . 14 3 Ballistic Gun 4 | . 14 2 Special Weapon 2 | . . 3 Impact Weapon 13 | . . 15 Naked Turns . | . . . Heaviest Build 13 | 7 7 13 Greatest Support 32 | 32 32 32 Greatest Overweight (x) . | . . . Average Overweight (x) . | . . . Largest Inventory Capacity 2 | . . 2 Average Capacity 1 | . . 1 Most Carried 2 | . . 2 Average Carried 1 | . . 1 Final Capacity 2 | . . 2 Final Carried 2 | . . 2 Class Distribution -------------------- 100% | Mutant Dominant Class ---------------- Mutant | -10/Materials Mutant | -9/Materials Resources | -11 -10 -9 ----------- Run | Scr Mat Mat Matter Collected 380 | 250 3 127 Remotely 40 | . . 40 Salvage Created 317 | . . 317 Parts 4 | . . 4 Haulers Intercepted 3 | . . 3 Recyclers Shooed . | . . . Parts Field Recycled . | . . . Retrieved Matter . | . . . Parts Self-Destructed . | . . . Prevented . | . . . Kills | -11 -10 -9 ------- Run | Scr Mat Mat Combat Hostiles Destroyed 2 | . . 2 Guns 1 | . . 1 Classes Destroyed 4 | . . 4 Hauler 3 | . . 3 Recycler 1 | . . 1 Swarmer 1 | . . 1 Grunt 1 | . . 1 Best Kill Streak 2 | . . 2 Combat Bots Only 1 | . . 1 Max Kills in Single Turn 1 | . . 1 Gunslinging . | . . . Exploded . | . . . Melee . | . . . Uniques/NPCs Destroyed . | . . . Combat | -11 -10 -9 -------- Run | Scr Mat Mat Damage Taken 729 | . 485 244 Core 602 | . 401 201 Absorbed by Shields . | . . . Redirected to Core 383 | . 252 131 Core Remaining (%) 66 | 100 33 . Volleys Fired 13 | . 1 12 Largest 2 | . 2 2 Hottest 60 | . 60 60 Shots Fired 23 | . 2 21 Gun 20 | . 2 18 Cannon . | . . . Launcher . | . . . Special 3 | . . 3 Kinetic 10 | . 1 9 Thermal 3 | . . 3 Explosive . | . . . Electromagnetic 10 | . 1 9 Robot Hit Streak 9 | . . 9 Robot Miss Streak 3 | . 2 3 Penetration Max . | . . . Secondary Targets . | . . . Shots Hit Robots 23 | . . 23 Core Hits 3 | . . 3 Critical Hits . | . . . Critical Kills . | . . . Critical Parts Destroyed . | . . . Melee Attacks 13 | . . 13 Impact 13 | . . 13 Slashing . | . . . Piercing . | . . . Sneak Attacks 5 | . . 5 Combat Hostiles . | . . . Follow-up Attacks 3 | . . 3 Damage Inflicted 587 | . . 587 Guns 156 | . . 156 Cannons . | . . . Explosions 23 | . . 23 Melee 408 | . . 408 Ramming . | . . . Kinetic 65 | . . 65 Thermal 23 | . . 23 Explosive . | . . . Electromagnetic 91 | . . 91 Impact 408 | . . 408 Slashing . | . . . Piercing . | . . . Highest Corruption . | . . . Average Corruption . | . . . Corruption Purged . | . . . Overload Shots . | . . . Overflow Damage 187 | . . 187 Projectiles . | . . . Explosions . | . . . Melee 187 | . . 187 Knockbacks 2 | . . 2 Impact 2 | . . 2 Kinetic . | . . . Secondary . | . . . Self-Inflicted Damage 24 | . . 24 Shots 1 | . . 1 Rammed . | . . . Targets Rammed . | . . . Kicked . | . . . Crushed . | . . . Highest Temperature 54 | . 7 54 Average Temperature 31 | . 7 32 Received Heat Transfer 210 | . 150 60 Siege Activations . | . . . Robots Corrupted . | . . . Combat Hostiles . | . . . Parts Fried 4 | . . 4 Impact Corruptions 8 | . . 8 Robots Melted . | . . . Combat Hostiles . | . . . Parts Melted . | . . . Heat Transferred 50 | . . 50 Parts Sabotaged . | . . . Parts Stolen . | . . . Parts Stripped . | . . . Power Chain Reactions 1 | . . 1 Missiles Intercepted . | . . . Alert | -11 -10 -9 ------- Run | Scr Mat Mat Peak Influence 146 | . 15 146 Initial 5 | . . 5 Average 33 | . 7 42 Maximum Alert Level . | . . . Low Security (%) 100 | 100 100 100 Level 1 . | . . . Level 2 . | . . . Level 3 . | . . . Level 4 . | . . . Level 5 . | . . . High Security . | . . . Max Security . | . . . Squads Dispatched 3 | . 2 1 Investigation 2 | . 1 1 Extermination . | . . . Reinforcement 1 | . 1 . Assault . | . . . Garrison . | . . . Intercept . | . . . Construction Impeded . | . . . Haulers Reinforced . | . . . Stealth | -11 -10 -9 --------- Run | Scr Mat Mat Distress Signals 1 | . 1 . Communications Jammed . | . . . Distress Signals . | . . . Times Spotted 21 | . 10 11 Peak Tracking Total 9 | . 9 8 Tactical Retreats 1 | . . 1 Traps | -11 -10 -9 ------- Run | Scr Mat Mat Traps Triggered 1 | . 1 . Indirectly . | . . . Trap Hack Attempts . | . . . Triggered . | . . . Disarmed . | . . . Reprogrammed . | . . . Reused . | . . . Traps Extracted . | . . . Installed . | . . . Triggered . | . . . Machines | -11 -10 -9 ---------- Run | Scr Mat Mat Machines Disabled 1 | . . 1 Max in Single Turn 1 | . . 1 Machines Sabotaged . | . . . Garrisons Compromised . | . . . Overloaded Fab Kills . | . . . Fab Network Shutdowns . | . . . Hacking | -11 -10 -9 --------- Run | Scr Mat Mat Machines Accessed 1 | . . 1 Terminals . | . . . Fabricators . | . . . Repair Stations . | . . . Recycling Units . | . . . Scanalyzers 1 | . . 1 Garrison Access . | . . . Total Hacks 1 | . . 1 Successful 1 | . . 1 Failed . | . . . Catastrophic . | . . . Database Lockouts . | . . . Manual 1 | . . 1 Terminals . | . . . Fabricators . | . . . Repair Stations . | . . . Recycling Units . | . . . Scanalyzers 1 | . . 1 Garrison Access . | . . . Terminal Hacks . | . . . Fabricator Hacks . | . . . Repair Station Hacks . | . . . Recycling Unit Hacks . | . . . Scanalyzer . | . . . Garrison Access Hacks . | . . . Unauthorized Hacks 1 | . . 1 Terminals . | . . . Fabricators . | . . . Repair Stations . | . . . Recycling Units . | . . . Scanalyzers 1 | . . 1 Extract 1 | . . 1 Garrison Access . | . . . Data Cores Recovered . | . . . Used . | . . . Hacking Detections . | . . . Full Trace Events . | . . . Feedback Events . | . . . Feedback Blocked . | . . . Robot Schematics Acquired . | . . . Robots Built . | . . . Matter . | . . . Time . | . . . Total Robot Build Rating . | . . . Part Schematics Acquired 5 | . . 5 Parts Built . | . . . Matter . | . . . Time . | . . . Total Part Build Rating . | . . . Parts Repaired . | . . . Time . | . . . Parts Recycled . | . . . Recycled Matter . | . . . Retrieved Matter . | . . . Retrieved Components . | . . . Parts Scanalyzed . | . . . Part Schematics Acquired . | . . . Parts Damaged . | . . . Bothacking | -11 -10 -9 ------------ Run | Scr Mat Mat Used RIF Installer . | . . . Robots Hacked . | . . . Non-combat . | . . . Combat . | . . . Robot Hacks Applied . | . . . Relay Couplers Released . | . . . Robots Rewired . | . . . Allies Hacked . | . . . Hacks Repelled . | . . . Allies | -11 -10 -9 -------- Run | Scr Mat Mat Total Allies . | . . . Largest Group . | . . . Highest-Rated Group . | . . . Highest-Rated Ally . | . . . Total Orders . | . . . Ally Attacks . | . . . Total Damage . | . . . Kills . | . . . Allies Corrupted . | . . . Allies Melted . | . . . Intel | -11 -10 -9 ------- Run | Scr Mat Mat Robot Analysis Total . | . . . Derelict Logs Recovered . | . . . Drone Launches . | . . . Drone Recoveries . | . . . Exploration | -11 -10 -9 ------------- Run | Scr Mat Mat Turns Passed 409 | 45 52 312 Spaces Moved 310 | 41 48 221 Core 6 | 6 . . Treads . | . . . Legs . | . . . Wheels 304 | 35 48 221 Hover . | . . . Flight . | . . . Fastest Speed 50 | 50 100 100 Average Speed 99 | 92 100 100 Slowest Speed 100 | 100 100 100 Overloaded Moves . | . . . Propulsion Burnouts . | . . . Robots Hopped . | . . . Cave-ins Triggered . | . . . Exploration Rate (%) 13 | 3 18 18 Regions Visited 2 Branch Regions . Pre-discovered Areas . | . . . Known Exits Taken . | . . . Unknown Exits Taken 2 | 1 1 . Scrap Searched . | . . . Spaces Dug . | . . . Terrain Destroyed 3 | . . 3 Melee . | . . . Projectile . | . . . AOE 3 | . . 3 Terrain Rammed . | . . . Walls Destroyed . | . . . Machines Disabled . | . . . Actions | -11 -10 -9 --------- Run | Scr Mat Mat Total 368 | 45 49 274 Wait 6 | . . 6 Move 308 | 40 47 221 Hop . | . . . Pick Up 9 | . . 9 Fast Attach 6 | 5 1 . Attach 6 | . . 6 Detach . | . . . Swap 3 | . . 3 Drop 7 | . . 7 Fire 13 | . 1 12 Melee 10 | . . 10 Ram . | . . . Kick . | . . . Crush . | . . . Escape Stasis . | . . . Rewire . | . . . Trap . | . . . Miscellaneous . | . . . Route ------- -11/Scrapyard -10/Materials -9/Materials History --------- Turn | Location | Event 3 | -11/Scrapyard | Discovered new exit (range 15) 7 | -11/Scrapyard | Upgraded with Propulsion slot (x2) 7 | -11/Scrapyard | Upgraded with Weapon slot (x1) 46 | -11/Scrapyard | Entered Materials 68 | -10/Materials | Discovered new exit (range 17) 96 | -10/Materials | Core integrity fell below 50% 98 | -10/Materials | Entered another Materials area 99 | -9/Materials | Core integrity fell below 50% 100 | -9/Materials | Reached level 2 225 | -9/Materials | Core integrity fell below 20% 304 | -9/Materials | Build established: Mutant 410 | -9/Materials | Destroyed by G-34 Mercenary with Small Laser Last Messages --------------- 00386_ Connecting with Scanalyzer... 00386_ Current location identified: Materials >>Force(Extract) EXTRACTED[Lgt. Cannon] EXTRACTED[Lgt. Treads] EXTRACTED[Mace] EXTRACTED[Imp. Medium Laser] EXTRACTED[Sensor Array] 00386_ ALERT: Suspicious activity at Scanalyzer M001. Dispatching Investigation squad. 00394_ R-06 Scavenger collects Faulty Imp. EM Shotgun. 00398_ Destroyed Flight Unit. 00398_ S-10 Pest system corrupted by crushing effect. 00400_ S-10 Pest misfires. 00403_ Destroyed Lgt. Ion Engine. 00403_ S-10 Pest system corrupted by crushing effect. 00403_ Mace follow-up attack on S-10 Pest. 00403_ Destroyed Flight Unit. 00403_ S-10 Pest system corrupted by crushing effect. 00403_ S-10 Pest knocked back. Map ----- +----------------------------------------------------+ | ?????????????????????????????????????????????# # | | ?????????????????????????????????????????????# # | | ?????????????????????????????????????????????# + | | ?????????????????????????????????????????????# # | | ?????????????????????????????????????????????### # | | ????????????????????????????????????????????#### # | | ??????????????????????????????????? ??????##%% # | | ?????????????????????????????????# ??????#% # | | ?????????????????????????????????# ??????#% # | | ?????????????????????????????????# ??????#% | | ?????????????????????????????????# #?????????## | | ?????????????????????????????????+ +??????????# | | ?????????????????????????????????# ############ | | ??????????????????????????##?###?# | | ??????????????????????????# ? # | | ??????????????????????????# ? # " | | ??????????????????????????# ? + ""% | | ??????????????????????????? ???# "" | | ??????????????????????????? ???# "" ###### | | ??????????????????????????? ???# "" =##??# | | ???????????????????????????#/#???# "" %##??# | | ?????????????????????#?????#a#???# ""% ##??# | | ?????????????????????# ??### ###?# ""==[ #???# | | ??????????????????####/### #?# " ##??# | | ??????????????????# ss #g ### % ###### | | ??????????????????# @s s t | | ??????????????????# "" s#Y ### ###### | | ??????????????????# """ # #?###+## | #????? | | ??????????????????# S" ### ###?? ###+######?? | | ??????????????????# #?# #??# # #?? | | ??????????????????########?# #??# """ # """ #?? | | ???????????????????????????#/#??# """ # """ #?? | | ???????????????????????????? ??# """ # """ #?? | | ???????????????????????????? ??# # #?? | | ????????????????????????????? ??# """ # #?? | | ????????????????????????????? ??# """ # ! #?? | | ????????????????????????????? ?# ??? # !! #?? | | ????????????????????????????? #?????? # ! #?? | | ????????????????????????????? #?????? ##########?? | | ????????????????????????????? #?????? #??????????? | | ??????????????????????????????#??????##??????????? | | ?????????????????????????????????????????????????? | | ?????????????????????????????????????????????????? | | ?????????????????????????????????????????????????? | | ?????????????????????????????????????????????????? | | ?????????????????????????????????????????????????? | | ?????????????????????????????????????????????????? | | ?????????????????????????????????????????????????? | | ?????????????????????????????????????????????????? | | ?????????????????????????????????????????????????? | +----------------------------------------------------+ Best States ------------- Heat Dissipation 25 Energy Generation 14 Energy Capacity 280 Matter Stores 300 Matter Capacity 300 Sight Range 18 Terrain Scan Density 85 Resistance: KI 5 Resistance: TH 5 Resistance: EX 5 Evasion (%) 40 Offensive Hacking 10 Item Schematics ----------------- Lgt. Cannon | -9/Materials | Extracted Lgt. Treads | -9/Materials | Extracted Mace | -9/Materials | Extracted Imp. Medium Laser | -9/Materials | Extracted Sensor Array | -9/Materials | Extracted Robot Schematics ------------------ None Fabricated ------------ Nothing Alien Tech Used ----------------- None Achievements -------------- None Challenges ------------ None RPGLIKE | -11 -10 -9 --------- Run | Scr Mat Mat Levels Raised 1 | . . 1 XP Earned 5280 | 3000 100 2180 XP Spent 4500 | 3000 . 1500 Upgrades 14 | 8 . 6 Propulsion Slot 2 | 2 . . Weapon Slot 1 | 1 . . Inventory Capacity 2 | . . 2 Sight Range 2 | 2 . . Melee Accuracy 2 | 1 . 1 Hack Attack % 2 | 2 . . KI Resistance % 1 | . . 1 TH Resistance % 1 | . . 1 EX Resistance % 1 | . . 1 Protomatter Created . | . . . Protomatter Decayed . | . . . Game ------ Seed FlakMakeshiftBuckler Manual? 0 Play Time 00:08:03 Cumulative 72.5 hours Start 2020.11.02 @ 00:48:32 End 2020.11.02 @ 00:53:37 Sessions 1 Manual Loads 0 Difficulty Rogue Special Mode Winter2019/RPGLIKE Game No. 109 Rogue 109 Adventurer 0 Explorer 0 Win Type - Total 1 Types 1/0/0/0/0/0/0/0/0 Lore% 35 Gallery% 46 Achievement% 39 Wizard Run 0 Options --------- ASCII 0 Keyboard 0 Movement Mouse Keybinds 0 Fullscreen 2 Font 18/X11 Map View 76x50 Tactical HUD 1 Map Filters NONE Filters NONE Steam 1 RUN: a2f9a069-cdce-4160-b8a9-53ea9c55a00b